bitfinex/quotes_SOLUSD_20241110
["timestamp","ask_amount","ask_price","bid_price","bid_amount"]
[1731267380128,28.42,209.77,209.71,38.62686583]
[1731267380331,71.81336583,209.8,209.73,38.62686583]
[1731267380700,38.62686583,209.79,209.72,38.62686583]
[1731267381006,16.434,209.84,209.78,38.62686583]
[1731267381209,45.11356583,209.86,209.79,38.62686583]
[1731267381408,78.29876583,209.86,209.79,38.62686583]
[1731267381607,38.62686583,209.88,209.81,38.62686583]
[1731267381935,38.62686583,210.1,209.81,38.62686583]
[1731267381936,38.62686583,209.94,209.87,38.62686583]
[1731267382225,4.7629,209.96,209.77,38.62686583]
[1731267382226,38.62686583,209.96,209.89,38.62686583]
[1731267382434,0.1,210.03,209.93,38.62686583]
[1731267382435,67.04686583,210.0,209.93,38.62686583]
[1731267382728,0.12549,209.99,209.86,23.776884]
[1731267382895,0.12549,209.99,209.79,6.5618]
[1731267382896,0.1,209.95,209.81,23.776884]
[1731267383412,0.1,209.97,209.81,35.692084]
[1731267383935,38.62686583,209.9,209.84,23.776884]
[1731267384100,38.62686583,209.9,209.81,35.692084]
[1731267384101,38.62686583,209.95,209.88,38.62686583]
[1731267384309,38.62686583,209.96,209.89,38.62686583]
[1731267384712,38.62686583,209.95,209.85,23.776884]
[1731267384925,38.62686583,209.94,209.87,38.62686583]
[1731267385218,38.62686583,209.89,209.84,16.6793]
[1731267385421,0.12549,209.92,209.84,38.62686583]
[1731267385636,0.12549,209.92,209.83,23.776884]
[1731267386427,28.42,209.95,209.84,4.7655]
[1731267386609,38.62686583,209.92,209.85,62.40374983]
[1731267386804,38.62686583,209.91,209.85,23.776884]
[1731267387004,38.62686583,209.91,209.84,43.39236583]
[1731267387310,38.62686583,209.9,209.84,16.6793]
[1731267387914,38.62686583,209.89,209.84,16.6793]
[1731267388120,38.62686583,209.94,209.87,38.62686583]
[1731267388326,38.62686583,209.96,209.9,38.62686583]
[1731267388512,0.12549,209.95,209.85,23.776884]
[1731267388715,0.12549,209.95,209.88,38.62686583]
[1731267389029,4.7614,210.02,209.91,38.62686583]
[1731267389211,38.62686583,209.96,209.89,38.62686583]
[1731267389415,38.62686583,209.97,209.9,38.62686583]
[1731267389628,28.42,210.01,209.92,38.62686583]
[1731267389629,38.62686583,209.99,209.92,38.62686583]
[1731267389815,38.62686583,209.98,209.91,38.62686583]
[1731267390130,38.62686583,209.95,209.89,11.9107]
[1731267390702,38.62686583,209.96,209.89,50.53756583]
[1731267390903,38.62686583,209.92,209.86,4.765]
[1731267391103,38.62686583,209.9,209.84,50.54056583]
[1731267391342,38.62686583,209.89,209.84,11.9137]
[1731267391631,38.62686583,209.9,209.84,55.30606583]
[1731267392424,38.62686583,209.91,209.84,55.30606583]
[1731267393110,67.04686583,209.92,209.85,38.62686583]
[1731267393437,38.62686583,209.91,209.85,23.776884]
[1731267393817,38.62686583,209.92,209.85,62.40374983]
[1731267394128,4.7633,209.94,209.86,55.30456583]
[1731267394129,38.62686583,209.93,209.86,55.30456583]
[1731267394504,38.62686583,209.89,209.81,11.9151]
[1731267394707,38.62686583,209.88,209.81,11.9151]
[1731267394903,38.62686583,209.9,209.82,38.62686583]
[1731267395219,61.35326583,209.94,209.87,38.62686583]
[1731267395408,16.1186,209.94,209.88,38.62686583]
[1731267395902,38.62686583,209.94,209.85,16.6785]
[1731267396103,38.62686583,209.93,209.86,38.62686583]
[1731267397231,67.04686583,209.95,209.87,55.30376583]
[1731267397434,16.1186,210.0,209.94,37.90996583]
[1731267397641,38.62686583,210.02,209.94,37.90996583]
[1731267397848,0.12549,210.01,209.94,37.90996583]
[1731267398014,38.75235583,210.01,209.94,38.62686583]
[1731267398219,38.62686583,209.99,209.92,38.62686583]
[1731267398420,38.62686583,209.96,209.89,62.40374983]
[1731267398627,28.42,209.99,209.88,23.776884]
[1731267398628,38.62686583,209.94,209.88,23.776884]
[1731267398938,28.42,209.94,209.88,38.62686583]
[1731267399144,4.7635,209.93,209.8,16.6825]
[1731267399319,38.62686583,209.9,209.83,38.62686583]
[1731267400230,0.12549,209.92,209.82,38.62686583]
[1731267400231,38.62686583,209.89,209.82,38.62686583]
[1731267400432,38.62686583,209.9,209.83,38.62686583]
[1731267401117,38.62686583,209.91,209.83,55.30676583]
[1731267401318,0.1,210.01,209.83,55.30676583]
[1731267401319,67.04686583,210.0,209.91,23.776884]
[1731267401532,38.62686583,209.99,209.92,38.62686583]
[1731267401727,38.62686583,209.99,209.91,23.776884]
[1731267401728,38.62686583,209.99,209.91,62.40374983]
[1731267401950,28.42,210.0,209.83,40.5087]
[1731267401951,0.12549,209.95,209.83,16.6799]
[1731267402937,38.62686583,209.92,209.85,38.62686583]
[1731267403143,38.62686583,209.91,209.84,38.62686583]
[1731267403350,38.62686583,209.92,209.84,38.62686583]
[1731267403741,38.62686583,209.92,209.85,38.62686583]
[1731267404133,67.04686583,209.93,209.86,38.62686583]
[1731267404332,67.04686583,209.93,209.85,38.62686583]
[1731267404540,38.62686583,209.91,209.81,23.776884]
[1731267404829,38.62686583,209.92,209.85,38.62686583]
[1731267405050,38.62686583,209.94,209.87,38.62686583]
[1731267405229,67.04686583,209.96,209.87,23.776884]
[1731267405435,28.42,209.96,209.9,38.62686583]
[1731267405724,28.42,209.96,209.89,38.62686583]
[1731267405725,38.62686583,209.96,209.89,38.62686583]
[1731267406328,67.04686583,209.99,209.92,38.62686583]
[1731267406527,28.42,210.0,209.94,38.62686583]
[1731267406737,0.12549,209.99,209.93,38.62686583]
[1731267407054,38.62686583,210.0,209.93,38.62686583]
[1731267407229,16.1186,210.01,209.92,38.62686583]
[1731267407230,38.62686583,209.99,209.92,38.62686583]
[1731267407427,0.12549,209.97,209.91,38.62686583]
[1731267408147,20.8803,210.01,209.94,38.62686583]
[1731267408148,16.1186,210.01,209.94,38.62686583]
[1731267408536,38.62686583,210.0,209.94,4.7631]
[1731267409428,59.50716583,210.01,209.94,43.38996583]
[1731267409633,16.1186,210.01,209.98,38.62686583]
[1731267409833,6.6078,210.04,209.98,38.62686583]
[1731267410029,38.62686583,210.03,209.96,38.62686583]
[1731267410832,49.99566583,210.04,209.97,38.62686583]
[1731267411040,6.6078,210.04,209.98,38.62686583]
[1731267411256,38.62686583,210.05,209.95,23.776884]
[1731267411257,15.4552,210.06,210.01,38.62686583]
[1731267411634,6.1724,210.09,210.03,38.62686583]
[1731267412253,15.4552,210.11,210.06,38.62686583]
[1731267412553,73.21926583,210.14,210.07,38.62686583]
[1731267412851,15.4552,210.16,210.11,38.62686583]
[1731267413652,54.08206583,210.16,210.09,38.62686583]
[1731267413865,15.4552,210.16,210.1,38.62686583]
[1731267414460,15.4552,210.16,210.08,11.8998]
[1731267414461,15.4552,210.16,210.11,38.62686583]
[1731267414671,44.79926583,210.2,210.13,38.62686583]
[1731267414953,15.4552,210.21,210.12,23.776884]
[1731267414954,15.4552,210.21,210.17,38.62686583]
[1731267415161,15.4552,210.21,210.12,23.776884]
[1731267415162,15.4552,210.21,210.15,38.62686583]
[1731267415538,15.4552,210.21,210.16,38.62686583]
[1731267415752,38.62686583,210.24,210.17,38.62686583]
[1731267416068,6.1724,210.25,210.21,38.62686583]
[1731267416352,15.4552,210.26,210.21,38.62686583]
[1731267416553,6.1724,210.3,210.23,38.62686583]
[1731267416554,44.79926583,210.3,210.23,38.62686583]
[1731267416762,0.12549,210.29,210.25,38.62686583]
[1731267416944,6.1724,210.3,210.24,38.62686583]
[1731267417151,6.1724,210.3,210.14,30.259984]
[1731267417152,38.62686583,210.29,210.22,38.62686583]
[1731267417333,28.42,210.29,210.21,4.757]
[1731267417533,67.04686583,210.29,210.22,38.62686583]
[1731267417736,44.79926583,210.3,210.23,38.62686583]
[1731267417969,38.75235583,210.27,210.21,11.8928]
[1731267418140,38.75235583,210.25,210.18,38.62686583]
[1731267418344,0.12549,210.22,210.09,4.7598]
[1731267419234,28.54549,210.22,210.11,11.8983]
[1731267419536,67.17235583,210.17,210.11,11.8983]
[1731267419853,38.62686583,210.16,210.11,11.8983]
[1731267420043,67.04686583,210.17,210.11,11.8983]
[1731267420246,21.6276,210.18,210.13,38.62686583]
[1731267420572,21.6276,210.18,210.12,38.62686583]
[1731267420764,15.4552,210.18,210.12,38.62686583]
[1731267421140,38.62686583,210.18,210.11,50.52516583]
[1731267421340,38.62686583,210.18,210.13,4.7589]
[1731267421558,38.62686583,210.2,210.13,43.38576583]
[1731267421760,21.6276,210.23,210.17,38.62686583]
[1731267422055,15.4552,210.23,210.18,38.62686583]
[1731267422262,38.62686583,210.22,210.15,38.62686583]
[1731267422559,38.62686583,210.17,210.14,23.776884]
[1731267422764,0.12549,210.21,210.14,23.776884]
[1731267423060,38.62686583,210.17,210.14,23.776884]
[1731267423657,38.62686583,210.15,210.07,11.9007]
[1731267423972,38.62686583,210.14,210.07,50.52756583]
[1731267424857,38.62686583,210.14,209.99,38.62686583]
[1731267424858,38.62686583,210.09,210.02,38.62686583]
[1731267425739,38.62686583,210.12,210.05,38.62686583]
[1731267425960,54.08206583,210.14,210.07,38.62686583]
[1731267426468,0.12549,210.13,210.08,23.776884]
[1731267426634,15.4552,210.14,210.08,62.40374983]
[1731267426836,15.4552,210.14,210.1,23.776884]
[1731267427258,15.4552,210.14,210.09,23.776884]
[1731267427565,38.62686583,210.12,210.06,23.776884]
[1731267427740,38.62686583,210.07,210.0,16.6666]
[1731267427944,38.75235583,210.05,209.98,38.62686583]
[1731267428291,28.42,210.1,209.94,16.6713]
[1731267428563,38.62686583,210.03,209.96,38.62686583]
[1731267429265,38.62686583,210.01,209.94,16.6713]
[1731267429441,38.62686583,210.01,209.94,55.29816583]
[1731267430164,38.62686583,209.99,209.94,16.6713]
[1731267430343,38.62686583,210.0,209.95,23.776884]
[1731267430549,38.62686583,210.04,209.97,38.62686583]
[1731267430764,38.62686583,210.04,209.98,23.776884]
[1731267431063,38.62686583,210.02,209.96,28.539484]
[1731267431564,38.62686583,210.02,209.96,40.446484]
[1731267431940,38.62686583,210.03,209.96,79.07334983]
[1731267432141,6.1275,210.06,210.0,38.62686583]
[1731267432447,38.62686583,210.07,210.0,38.62686583]
[1731267432652,0.12549,210.09,209.99,23.776884]
[1731267432653,38.62686583,210.08,210.01,38.62686583]
[1731267432957,38.62686583,210.08,210.02,23.776884]
[1731267433647,38.62686583,210.06,210.02,23.776884]
[1731267434248,38.62686583,210.07,210.02,23.776884]
[1731267434451,0.12549,210.09,210.03,55.29106583]
[1731267434683,0.12549,210.09,210.04,23.776884]
[1731267435345,0.12549,210.09,210.05,38.62686583]
[1731267435669,0.12549,210.09,210.06,28.537284]
[1731267436348,0.12549,210.09,210.04,38.62686583]
[1731267436547,0.12549,210.09,210.05,23.776884]
[1731267436749,38.62686583,210.07,210.0,43.38866583]
[1731267436973,38.62686583,210.04,209.98,50.53236583]
[1731267437183,38.62686583,210.05,209.98,50.53236583]
[1731267437474,38.62686583,210.06,209.99,38.62686583]
[1731267437847,38.62686583,210.06,209.99,55.29416583]
[1731267438062,38.75235583,210.09,210.02,38.62686583]
[1731267438245,0.12549,210.09,210.03,62.40374983]
[1731267438467,0.12549,210.09,210.05,38.62686583]
[1731267438646,0.12549,210.09,210.06,62.40374983]
[1731267438847,0.12549,210.09,210.06,23.776884]
[1731267439174,0.12549,210.09,210.08,23.776884]
[1731267439551,38.75235583,210.09,210.01,38.62686583]
[1731267439850,38.62686583,210.04,209.99,11.9053]
[1731267440477,38.62686583,210.03,209.96,38.62686583]
[1731267440777,38.62686583,210.04,209.97,38.62686583]
[1731267440980,38.62686583,210.06,209.99,38.62686583]
[1731267441356,38.62686583,210.05,210.0,23.776884]
[1731267441675,4.88539,210.09,209.94,23.8161]
[1731267441676,38.62686583,210.06,209.99,79.07114983]
[1731267442062,0.12549,210.09,210.05,38.62686583]
[1731267442261,0.12549,210.09,210.06,23.776884]
[1731267442777,0.12549,210.09,210.05,23.776884]
[1731267442955,0.12549,210.09,210.05,62.40374983]
[1731267443351,0.12549,210.09,210.05,23.776884]
[1731267443572,28.42,210.05,209.99,50.53216583]
[1731267443779,28.42,210.05,209.99,11.9053]
[1731267443780,67.04686583,210.05,209.99,11.9053]
[1731267443980,38.62686583,210.04,209.99,11.9053]
[1731267444273,38.62686583,210.02,209.96,4.7626]
[1731267444960,38.62686583,210.04,209.97,38.62686583]
[1731267445162,28.54549,210.09,210.03,38.62686583]
[1731267445366,28.54549,210.09,210.04,23.776884]
[1731267445774,0.12549,210.09,210.04,23.776884]
[1731267445953,0.12549,210.09,210.05,38.62686583]
[1731267446156,0.12549,210.09,210.06,23.776884]
[1731267446356,0.12549,210.09,210.08,38.62686583]
[1731267446556,0.12549,210.09,210.08,23.776884]
[1731267447271,0.12549,210.09,210.07,23.776884]
[1731267447467,0.12549,210.09,210.07,38.62686583]
[1731267447665,0.12549,210.09,210.08,23.776884]
[1731267448675,0.12549,210.09,210.06,28.537184]
[1731267448872,0.12549,210.09,210.04,55.29006583]
[1731267449061,0.12549,210.09,210.04,16.6632]
[1731267449457,0.12549,210.09,210.04,55.29006583]
[1731267449663,0.12549,210.09,210.05,38.62686583]
[1731267449876,0.12549,210.09,210.07,38.62686583]
[1731267450081,0.12549,210.09,210.08,28.536884]
[1731267452979,0.12549,210.09,210.05,23.776884]
[1731267453879,38.75235583,210.09,210.05,23.776884]
[1731267454084,38.62686583,210.06,209.99,11.9048]
[1731267454285,38.62686583,210.04,209.99,11.9048]
[1731267454488,67.13686583,210.06,209.99,50.53166583]
[1731267454991,67.13686583,210.06,209.96,4.7628]
[1731267454992,38.62686583,210.03,209.96,43.38966583]
[1731267455281,38.62686583,210.02,209.96,4.7628]
[1731267455492,38.62686583,210.01,209.95,11.9075]
[1731267455672,38.62686583,210.0,209.95,11.9075]
[1731267455861,67.13686583,210.02,209.95,55.29736583]
[1731267456793,38.62686583,210.01,209.95,16.6705]
[1731267456961,38.62686583,210.0,209.95,16.6705]
[1731267457166,38.62686583,210.01,209.95,16.6705]
[1731267458260,38.62686583,210.01,209.96,23.776884]
[1731267458687,82.16456583,210.04,209.97,38.62686583]
[1731267458987,38.62686583,210.05,209.99,23.776884]
[1731267459178,38.62686583,210.08,210.01,23.776884]
[1731267459390,0.12549,210.09,210.03,0.1]
[1731267459688,0.12549,210.09,210.05,0.1]
[1731267459986,15.0277,210.24,210.05,0.1]
[1731267459987,15.0277,210.24,210.09,0.1]
[1731267460168,44.83446583,210.28,210.21,62.40374983]
[1731267460375,19.7829,210.3,210.21,62.40374983]
[1731267460376,38.62686583,210.29,210.22,38.62686583]
[1731267460694,38.62686583,210.31,210.24,23.776884]
[1731267460988,38.62686583,210.3,210.24,23.776884]
[1731267461493,44.83446583,210.34,210.27,38.62686583]
[1731267461790,4.7541,210.35,210.28,62.40374983]
[1731267461791,38.62686583,210.35,210.28,62.40374983]
[1731267462297,38.62686583,210.34,210.27,23.776884]
[1731267462586,38.62686583,210.35,210.28,38.62686583]
[1731267462788,38.62686583,210.34,210.27,67.15944983]
[1731267463181,38.62686583,210.35,210.29,23.776884]
[1731267463367,19.7812,210.37,210.29,23.776884]
[1731267463368,38.62686583,210.36,210.29,23.776884]
[1731267463565,38.62686583,210.35,210.29,23.276884]
[1731267463885,0.12549,210.38,210.33,38.62686583]
[1731267464272,0.12549,210.38,210.3,38.62686583]
[1731267464476,38.75235583,210.38,210.3,38.62686583]
[1731267464678,38.62686583,210.33,210.27,16.6451]
[1731267464870,38.62686583,210.33,210.2,16.6507]
[1731267465071,38.62686583,210.33,210.25,38.62686583]
[1731267465272,38.62686583,210.33,210.26,38.62686583]
[1731267465484,38.62686583,210.34,210.27,38.62686583]
[1731267465775,38.62686583,210.34,210.28,23.776884]
[1731267466097,38.62686583,210.37,210.29,38.62686583]
[1731267466277,38.62686583,210.37,210.3,23.776884]
[1731267466595,38.62686583,210.34,210.3,23.776884]
[1731267466769,38.62686583,210.34,210.29,4.7553]
[1731267466975,38.62686583,210.34,210.3,23.776884]
[1731267467283,38.62686583,210.33,210.27,16.645]
[1731267467482,38.62686583,210.34,210.28,23.776884]
[1731267467692,38.62686583,210.35,210.29,38.62686583]
[1731267467873,38.62686583,210.37,210.3,23.776884]
[1731267468073,38.62686583,210.37,210.3,62.40374983]
[1731267468885,38.62686583,210.37,210.31,4.7548]
[1731267469082,38.62686583,210.37,210.32,23.776884]
[1731267470699,38.62686583,210.37,210.33,23.776884]
[1731267471000,38.75235583,210.38,210.33,23.776884]
[1731267472574,38.25235583,210.38,210.33,23.776884]
[1731267472775,38.62686583,210.38,210.33,23.776884]
[1731267472986,38.62686583,210.39,210.33,4.7542]
[1731267473187,38.62686583,210.38,210.34,23.776884]
[1731267473388,38.62686583,210.39,210.34,23.776884]
[1731267473774,38.62686583,210.38,210.34,23.776884]
[1731267474699,38.62686583,210.35,210.32,11.8866]
[1731267475396,38.62686583,210.36,210.32,11.8866]
[1731267475632,38.62686583,210.38,210.32,11.8866]
[1731267475894,38.62686583,210.42,210.36,23.776884]
[1731267476204,38.62686583,210.45,210.38,38.62686583]
[1731267476503,38.62686583,210.44,210.37,38.62686583]
[1731267476813,18.85245502,210.46,210.41,38.62686583]
[1731267476974,16.4759,210.51,210.42,38.62686583]
[1731267476975,38.62686583,210.49,210.42,38.62686583]
[1731267477178,38.62686583,210.49,210.43,23.776884]
[1731267477400,38.62686583,210.48,210.43,23.776884]
[1731267477582,38.62686583,210.5,210.43,38.62686583]
[1731267477782,38.62686583,210.47,210.42,23.776884]
[1731267477980,38.62686583,210.48,210.42,23.776884]
[1731267478386,38.62686583,210.49,210.42,62.40374983]
[1731267478593,38.62686583,210.49,210.43,4.7521]
[1731267478799,38.62686583,210.48,210.44,23.776884]
[1731267480290,38.62686583,210.5,210.44,23.776884]
[1731267480499,38.62686583,210.5,210.44,28.528684]
[1731267481003,38.62686583,210.51,210.44,40.408484]
[1731267481214,24.75,210.53,210.44,40.408484]
[1731267481215,38.62686583,210.53,210.47,23.776884]
[1731267481381,38.62686583,210.52,210.47,23.776884]
[1731267481577,38.62686583,210.52,210.45,23.776884]
[1731267481777,38.62686583,210.47,210.45,23.776884]
[1731267482387,38.62686583,210.46,210.39,11.8823]
[1731267482588,38.62686583,210.46,210.4,23.776884]
[1731267483082,38.62686583,210.47,210.4,62.40374983]
[1731267483283,38.62686583,210.49,210.42,38.62686583]
[1731267483584,38.62686583,210.49,210.43,23.776884]
[1731267483989,38.62686583,210.5,210.43,62.40374983]
[1731267484805,4.7498,210.54,210.38,0.1]
[1731267484806,38.62686583,210.51,210.45,23.776884]
[1731267484989,38.62686583,210.5,210.45,23.776884]
[1731267485188,38.62686583,210.46,210.36,0.1]
[1731267485410,38.62686583,210.45,210.39,11.8826]
[1731267486400,38.62686583,210.44,210.39,16.6356]
[1731267486705,38.62686583,210.44,210.4,23.776884]
[1731267487284,38.62686583,210.46,210.4,23.776884]
[1731267487802,38.62686583,210.46,210.39,16.6356]
[1731267487803,38.62686583,210.44,210.39,11.8826]
[1731267488106,28.51,210.45,210.32,62.40006583]
[1731267488107,38.62686583,210.4,210.34,11.885]
[1731267488282,38.62686583,210.4,210.34,16.6392]
[1731267488689,67.13686583,210.41,210.34,55.26606583]
[1731267489084,38.62686583,210.39,210.34,16.6392]
[1731267489299,38.62686583,210.38,210.34,11.885]
[1731267489490,38.62686583,210.37,210.32,4.7545]
[1731267489700,38.62686583,210.38,210.32,4.7545]
[1731267490202,38.62686583,210.34,210.3,4.7549]
[1731267490592,38.62686583,210.36,210.29,50.51466583]
[1731267491202,38.62686583,210.35,210.29,11.8878]
[1731267491408,38.62686583,210.35,210.3,23.776884]
[1731267491987,28.51,210.42,210.3,23.776884]
[1731267492301,38.62686583,210.31,210.23,50.51816583]
[1731267492498,38.62686583,210.3,210.25,4.7561]
[1731267492690,38.62686583,210.31,210.25,4.7561]
[1731267493122,38.62686583,210.32,210.25,43.38296583]
[1731267493412,38.62686583,210.33,210.26,62.40374983]
[1731267493916,38.62686583,210.33,210.26,4.7559]
[1731267493917,38.62686583,210.31,210.26,4.7559]
[1731267494215,38.62686583,210.32,210.27,23.776884]
[1731267495417,38.62686583,210.31,210.27,23.776884]
[1731267495623,38.62686583,210.32,210.27,28.532584]
[1731267496002,38.62686583,210.31,210.26,23.776884]
[1731267497130,38.62686583,210.35,210.29,23.776884]
[1731267497418,38.62686583,210.35,210.3,4.7551]
[1731267497597,38.62686583,210.35,210.31,23.776884]
[1731267497793,38.62686583,210.34,210.31,23.776884]
[1731267498024,38.62686583,210.33,210.28,16.6436]
[1731267498320,38.62686583,210.33,210.29,23.776884]
[1731267499516,38.62686583,210.34,210.29,28.532084]
[1731267500300,38.62686583,210.36,210.29,79.04724983]
[1731267500727,38.62686583,210.36,210.29,40.420384]
[1731267501530,38.62686583,210.36,210.29,79.04724983]
[1731267501826,38.62686583,210.36,210.29,40.420384]
[1731267503335,38.62686583,210.36,210.29,79.04724983]
[1731267503625,38.62686583,210.37,210.32,23.776884]
[1731267503835,38.62686583,210.4,210.33,38.62686583]
[1731267504039,38.62686583,210.41,210.34,62.40374983]
[1731267504532,38.62686583,210.38,210.32,23.776884]
[1731267504999,38.62686583,210.39,210.33,16.6404]
[1731267505203,38.62686583,210.39,210.34,23.776884]
[1731267506321,38.62686583,210.39,210.34,28.530884]
[1731267506532,38.62686583,210.37,210.34,23.776884]
[1731267506708,38.62686583,210.35,210.29,11.8882]
[1731267506916,38.62686583,210.31,210.24,40.3194]
[1731267507233,38.62686583,210.31,210.24,78.94626583]
[1731267507607,38.62686583,210.31,210.24,62.40876583]
[1731267507906,38.62686583,210.31,210.26,4.7558]
[1731267508715,38.62686583,210.32,210.26,4.7558]
[1731267508914,38.62686583,210.31,210.26,4.7558]
[1731267509114,38.62686583,210.31,210.27,23.776884]
[1731267509931,33.2638,210.36,210.26,35.666884]
[1731267509932,38.62686583,210.28,210.26,35.666884]
[1731267510528,38.62686583,210.29,210.26,35.666884]
[1731267511419,38.62686583,210.29,210.26,40.422884]
[1731267513117,38.62686583,210.3,210.26,40.422884]
[1731267513335,38.62686583,210.29,210.26,40.422884]
[1731267516943,38.62686583,210.33,210.27,38.62686583]
[1731267517121,38.62686583,210.33,210.28,23.776884]
[1731267517325,38.62686583,210.36,210.3,23.776884]
[1731267517524,38.62686583,210.38,210.32,23.776884]
[1731267517936,38.62686583,210.36,210.3,23.776884]
[1731267518139,38.62686583,210.34,210.27,38.62686583]
[1731267518318,38.62686583,210.34,210.28,62.40374983]
[1731267518645,38.62686583,210.35,210.28,62.40374983]
[1731267518940,4.7528,210.4,210.26,16.646]
[1731267518941,38.62686583,210.36,210.3,23.776884]
[1731267519444,38.62686583,210.35,210.3,23.776884]
[1731267519948,38.62686583,210.35,210.31,4.7548]
[1731267520328,38.62686583,210.34,210.29,11.8883]
[1731267520633,38.62686583,210.31,210.27,4.7556]
[1731267520938,38.62686583,210.31,210.26,11.89]
[1731267521143,38.62686583,210.3,210.26,11.89]
[1731267521326,38.62686583,210.31,210.26,16.646]
[1731267521731,38.62686583,210.31,210.26,16.146]
[1731267521932,38.62686583,210.29,210.22,57.10996583]
[1731267522242,38.62686583,210.27,210.22,16.6487]
[1731267522430,38.62686583,210.26,210.22,11.892]
[1731267522820,38.62686583,210.26,210.19,59.92176583]
[1731267523540,38.62686583,210.26,210.19,43.38426583]
[1731267523842,38.62686583,210.26,210.17,18.3905]
[1731267523843,38.62686583,210.25,210.2,23.776884]
[1731267524016,38.62686583,210.25,210.19,23.776884]
[1731267526036,28.51,210.24,210.19,23.776884]
[1731267526354,67.13686583,210.24,210.19,23.776884]
[1731267526561,28.51,210.24,210.19,23.776884]
[1731267527851,28.51,210.22,210.16,38.62686583]
[1731267528220,4.7565,210.24,210.13,11.8973]
[1731267528221,38.62686583,210.19,210.13,11.8973]
[1731267528421,38.62686583,210.17,210.13,11.8973]
[1731267528724,67.13686583,210.17,210.1,43.38626583]
[1731267529031,4.7565,210.24,210.08,11.8997]
[1731267529032,38.62686583,210.12,210.08,11.8997]
[1731267529533,38.62686583,210.13,210.08,11.8997]
[1731267530034,38.62686583,210.13,210.08,16.6597]
[1731267530447,38.62686583,210.13,210.09,23.776884]
[1731267530745,38.62686583,210.11,210.09,23.776884]
[1731267530957,38.62686583,210.11,210.02,6.2614]
[1731267530958,38.62686583,210.1,210.03,50.52966583]
[1731267531134,38.62686583,210.11,210.04,38.62686583]
[1731267532232,38.62686583,210.13,210.07,23.776884]
[1731267532451,67.13686583,210.14,210.07,62.40374983]
[1731267532747,38.62686583,210.13,210.06,62.40374983]
[1731267532947,38.62686583,210.1,210.06,23.776884]
[1731267533334,67.13686583,210.1,210.04,23.776884]
[1731267533532,38.62686583,210.09,210.04,23.776884]
[1731267534023,67.13686583,210.1,210.04,23.776884]
[1731267534228,67.13686583,210.1,210.02,6.2614]
[1731267534229,28.51,210.08,210.02,38.62686583]
[1731267535229,67.13686583,210.06,210.01,11.9041]
[1731267535738,38.62686583,210.04,209.98,4.7623]
[1731267536137,38.62686583,210.02,209.96,22.9311]
[1731267536339,38.62686583,210.02,209.96,16.6697]
[1731267536849,38.62686583,210.01,209.96,11.9069]
[1731267537431,38.62686583,210.02,209.96,11.9069]
[1731267538260,34.5826,210.08,209.98,38.62686583]
[1731267538566,38.62686583,209.99,209.93,4.7633]
[1731267539051,0.12549,210.03,209.92,11.9092]
[1731267539429,28.63549,210.01,209.92,11.9092]
[1731267539627,38.62686583,209.95,209.89,15.1169]
[1731267539832,38.62686583,209.94,209.88,4.7644]
[1731267540250,16.6465,210.0,209.88,43.39126583]
[1731267540251,38.62686583,209.95,209.88,43.39126583]
[1731267540453,38.62686583,209.97,209.9,38.62686583]
[1731267540958,38.62686583,209.99,209.92,38.62686583]
[1731267541252,38.62686583,210.0,209.94,38.62686583]
[1731267541455,38.62686583,210.01,209.94,43.38996583]
[1731267541957,38.62686583,210.03,209.97,23.776884]
[1731267542159,38.62686583,210.02,209.95,62.40374983]
[1731267542541,38.62686583,210.0,209.95,23.776884]
[1731267542743,38.62686583,209.99,209.95,23.776884]
[1731267542935,38.62686583,209.99,209.94,11.9081]
[1731267543634,38.62686583,209.98,209.94,11.9081]
[1731267545329,38.62686583,209.97,209.89,11.9104]
[1731267545536,38.62686583,209.94,209.89,11.9104]
[1731267545731,38.62686583,209.92,209.87,4.7647]
[1731267546029,38.62686583,209.99,209.81,0.1]
[1731267546030,28.63549,209.94,209.81,6.2614]
[1731267546234,28.63549,209.94,209.79,16.6826]
[1731267546459,38.62686583,209.85,209.79,16.6826]
[1731267546630,38.62686583,209.86,209.79,55.30946583]
[1731267547235,38.62686583,209.85,209.79,55.30946583]
[1731267547461,38.62686583,209.86,209.79,55.30946583]
[1731267547647,38.62686583,209.85,209.8,23.776884]
[1731267548537,38.62686583,209.85,209.8,28.543184]
[1731267549164,38.62686583,209.86,209.8,40.459284]
[1731267549338,38.62686583,209.87,209.82,23.776884]
[1731267549753,38.62686583,209.88,209.82,23.776884]